bitfinex/quotes_BTCUSD_20250330
["timestamp","ask_amount","ask_price","bid_price","bid_amount"]
[1743354828663,0.012123,82485.0,82478.0,0.37489483]
[1743354828952,0.254588,82486.0,82480.0,0.242481]
[1743354830061,0.25261921,82486.0,82480.0,0.242481]
[1743354830430,0.25261921,82486.0,82480.0,0.254605]
[1743354831069,0.242471,82484.0,82475.0,0.1476]
[1743354831270,0.254603,82482.0,82475.0,0.254619]
[1743354831753,0.254597,82483.0,82476.0,0.254615]
[1743354832652,0.012123,82482.0,82476.0,0.254615]
[1743354832855,0.254602,82482.0,82476.0,0.242491]
[1743354834379,0.254608,82480.0,82474.0,0.0003368]
[1743354834607,0.254608,82480.0,82476.0,0.0003368]
[1743354834778,0.242489,82478.0,82476.0,0.0003368]
[1743354835334,0.312124,82477.0,82476.0,0.0003368]
[1743354835638,0.82208231,82477.0,82476.0,0.0003368]
[1743354836207,0.84708231,82477.0,82476.0,0.0003368]
[1743354837017,0.65079385,82465.0,82438.0,0.048]
[1743354837218,0.99350481,82465.0,82438.0,0.048]
[1743354837517,0.99350481,82465.0,82433.0,0.1478966]
[1743354837518,1.02350481,82465.0,82433.0,0.1478966]
[1743354837831,1.14378964,82465.0,82433.0,0.1478966]
[1743354838177,1.13878964,82465.0,82435.0,0.254744]
[1743354838477,1.01850481,82465.0,82436.0,0.01213]
[1743354839233,1.02350481,82465.0,82435.0,0.254744]
[1743354839617,1.02350481,82465.0,82433.0,0.4026476]
[1743354839618,1.04249957,82465.0,82433.0,0.4026476]
[1743354839815,1.07895657,82465.0,82433.0,0.1600276]
[1743354840019,1.07895657,82465.0,82433.0,0.1478966]
[1743354841827,1.07395657,82465.0,82436.0,0.254742]
[1743354841999,1.15279768,82465.0,82436.0,0.01213]
[1743354842768,0.74206272,82465.0,82444.0,0.242587]
[1743354842966,1.02625872,82465.0,82448.0,0.048]
[1743354843176,1.04079957,82465.0,82448.0,0.048]
[1743354843376,1.02625872,82465.0,82448.0,0.048]
[1743354843948,1.04079957,82465.0,82448.0,0.048]
[1743354845222,1.06579957,82465.0,82448.0,0.048]
[1743354845374,1.04079957,82465.0,82448.0,0.048]
[1743354846708,1.02180481,82465.0,82448.0,0.048]
[1743354847219,1.04680481,82465.0,82448.0,0.048]
[1743354847420,1.11850145,82465.0,82448.0,0.048]
[1743354848023,1.11850145,82465.0,82441.0,0.048]
[1743354848419,1.12350145,82465.0,82441.0,0.048]
[1743354848641,1.20510145,82465.0,82441.0,0.048]
[1743354849443,1.20510145,82465.0,82435.0,0.079]
[1743354849672,1.2240966,82465.0,82433.0,0.0483366]
[1743354849903,1.5500486,82465.0,82433.0,0.0483366]
[1743354851796,1.5500486,82465.0,82434.0,0.01213]
[1743354852143,1.5500486,82465.0,82433.0,0.0483366]
[1743354852371,1.5500486,82465.0,82436.0,0.01213]
[1743354852590,1.47835196,82465.0,82437.0,0.254739]
[1743354853324,1.33075196,82465.0,82437.0,0.01213]
[1743354853545,0.45837428,82465.0,82456.0,0.012127]
[1743354853740,0.45837428,82465.0,82454.0,0.0463]
[1743354854476,0.75837428,82465.0,82454.0,0.0463]
[1743354856683,0.73937913,82465.0,82454.0,0.0463]
[1743354857650,0.554653,82465.0,82457.0,0.012127]
[1743354857851,0.554653,82465.0,82463.0,0.0797]
[1743354858219,0.55499,82465.0,82463.0,0.0797]
[1743354859794,0.57398216,82465.0,82463.0,0.0797]
[1743354860711,0.01932916,82465.0,82463.0,0.0797]
[1743354860849,0.01932916,82465.0,82464.0,0.25513449]
[1743354861048,0.01932916,82465.0,82464.0,0.24300849]
[1743354861272,0.01932916,82465.0,82464.0,0.25513449]
[1743354862115,0.01932916,82465.0,82464.0,0.00047849]
[1743354863699,0.01932916,82465.0,82464.0,0.05890449]
[1743354864660,0.000337,82465.0,82464.0,0.05890449]
[1743354869087,0.254594,82485.0,82473.0,0.012125]
[1743354869489,0.01898946,82480.0,82477.0,0.24249]
[1743354870718,0.01898946,82480.0,82478.0,0.242486]
[1743354873159,0.036444,82479.0,82478.0,0.242486]
[1743354873792,0.036444,82479.0,82477.0,0.24249]
[1743354875099,0.036444,82479.0,82478.0,0.012124]
[1743354877753,0.3,82487.0,82486.0,0.242465]
[1743354877940,0.0001684,82489.0,82484.0,0.24247]
[1743354878172,0.036441,82487.0,82484.0,0.24247]
[1743354878579,0.036441,82487.0,82482.0,0.242475]
[1743354879022,0.036441,82487.0,82483.0,0.242471]
[1743354879685,0.0554292,82487.0,82483.0,0.242471]
[1743354880033,0.0554292,82487.0,82486.0,0.242465]
[1743354880787,0.0554292,82487.0,82484.0,0.254594]
[1743354880939,0.0554292,82487.0,82484.0,0.242471]
[1743354881941,0.0555976,82487.0,82484.0,0.242471]
[1743354882143,0.0555976,82487.0,82485.0,0.242465]
[1743354883024,0.0555976,82487.0,82486.0,0.012123]
[1743354883666,0.0191566,82487.0,82486.0,0.012123]
[1743354885120,0.0191566,82487.0,82486.0,0.093523]
[1743354885961,0.0191566,82487.0,82486.0,0.240963]
[1743354886611,0.0001684,82487.0,82486.0,0.36124783]
[1743354888688,0.0001684,82487.0,82486.0,0.40784783]
[1743354892487,0.0001684,82487.0,82486.0,0.26040783]
[1743354892625,0.0001684,82487.0,82486.0,0.40780783]
[1743354894227,0.0001684,82487.0,82486.0,0.26040783]
[1743354894652,0.0001684,82487.0,82486.0,0.40780783]
[1743354896715,0.242367,82520.0,82505.0,0.01212]
[1743354896963,0.3,82518.0,82514.0,0.012119]
[1743354897221,0.004857,82516.0,82514.0,0.254502]
[1743354897942,0.31225847,82518.0,82514.0,0.254502]
[1743354898157,8.577e-05,82516.0,82514.0,0.254502]
[1743354899073,8.577e-05,82516.0,82515.0,0.1418316]
[1743354899365,8.577e-05,82516.0,82515.0,0.089719]
[1743354900132,0.012119,82514.0,82508.0,0.242398]
[1743354900488,8.577e-05,82516.0,82509.0,0.012119]
[1743354900695,8.577e-05,82516.0,82512.0,0.012119]
[1743354900944,8.577e-05,82516.0,82511.0,0.242389]
[1743354901090,0.01898083,82515.0,82511.0,0.242389]
[1743354901294,0.01898083,82515.0,82514.0,0.089719]
[1743354901878,0.01898083,82515.0,82514.0,0.138719]
[1743354902823,8.577e-05,82516.0,82515.0,0.254499]
[1743354904666,8.577e-05,82516.0,82515.0,0.37478383]
[1743354906003,8.577e-05,82516.0,82515.0,0.45238383]
[1743354906615,8.577e-05,82516.0,82515.0,0.51354344]
[1743354906989,0.00025417,82516.0,82515.0,0.51354344]
[1743354907324,0.00025417,82516.0,82515.0,0.1266]
[1743354907518,0.00025417,82516.0,82515.0,0.208439]
[1743354908116,0.012119,82514.0,82513.0,0.577]
[1743354908257,0.00025417,82516.0,82513.0,0.577]
[1743354908459,0.00025417,82516.0,82513.0,0.819385]
[1743354908889,0.00025417,82516.0,82513.0,0.577]
[1743354909099,0.00025417,82516.0,82514.0,0.012119]
[1743354909301,0.00025417,82516.0,82515.0,0.012119]
[1743354909675,0.01923278,82516.0,82515.0,0.012119]
[1743354910632,0.00025417,82516.0,82515.0,0.012119]
[1743354910784,0.01923266,82516.0,82515.0,0.012119]
[1743354913828,0.01923266,82516.0,82515.0,0.14728]
[1743354914063,0.01923266,82516.0,82515.0,0.38966]
[1743354914398,0.01923266,82516.0,82515.0,0.401779]
[1743354915186,0.01923266,82516.0,82515.0,0.254499]
[1743354915398,0.01923266,82516.0,82515.0,0.012119]
[1743354915609,0.01923266,82516.0,82513.0,0.831504]
[1743354915970,0.01923266,82516.0,82515.0,0.012119]
[1743354916676,0.00025417,82516.0,82515.0,0.012119]
[1743354916886,0.242385,82514.0,82512.0,0.0003368]
[1743354917117,0.012119,82513.0,82512.0,0.0003368]
[1743354919802,0.03110022,82513.0,82512.0,0.0003368]
[1743354920008,0.01898122,82513.0,82512.0,0.0124558]
[1743354920441,0.00025417,82516.0,82513.0,0.254505]
[1743354921366,0.00025417,82516.0,82515.0,0.254499]
[1743354921675,0.00025417,82516.0,82515.0,0.300199]
[1743354923757,0.01923289,82516.0,82515.0,0.300199]
[1743354924620,0.01923289,82516.0,82515.0,0.42048383]
[1743354926815,0.00025417,82516.0,82515.0,0.42048383]
[1743354930366,0.00025417,82516.0,82515.0,0.300199]
[1743354930596,0.00025417,82516.0,82515.0,0.1472]
[1743354930795,0.00025417,82516.0,82515.0,0.159319]
[1743354931054,0.0434942,82516.0,82512.0,0.0003368]
[1743354931222,0.012119,82513.0,82512.0,0.0003368]
[1743354931419,0.24238,82515.0,82512.0,0.0003368]
[1743354931648,0.03135125,82516.0,82513.0,0.012119]
[1743354931649,0.01923325,82516.0,82513.0,0.012119]
[1743354933690,0.01923325,82516.0,82514.0,0.254502]
[1743354934021,0.01923325,82516.0,82515.0,0.135319]
[1743354934502,0.00025417,82516.0,82515.0,0.25802754]
[1743354934683,0.00025417,82516.0,82515.0,0.25560383]
[1743354950237,0.00025417,82516.0,82515.0,0.83244383]
[1743354952762,0.00025417,82516.0,82515.0,0.75434383]
[1743354952928,0.00025417,82516.0,82515.0,0.90146383]
[1743354954267,0.00025417,82516.0,82515.0,0.98146383]
[1743354960888,0.00025417,82516.0,82515.0,1.28146383]
[1743354963193,0.00025417,82516.0,82515.0,0.83434383]
[1743354963324,0.00025417,82516.0,82515.0,0.90142383]
[1743354964383,0.242344,82527.0,82519.0,0.012118]
[1743354964581,0.242345,82527.0,82522.0,0.012117]
[1743354964805,0.254462,82527.0,82520.0,0.36264983]
[1743354965023,0.254462,82527.0,82521.0,0.012118]
[1743354965218,0.242347,82526.0,82520.0,0.242365]
[1743354965426,0.26935581,82527.0,82520.0,0.012118]
[1743354965727,0.00989381,82527.0,82521.0,0.25448]
[1743354966088,0.012116,82531.0,82523.0,0.242356]
[1743354966287,0.01487209,82531.0,82526.0,0.012117]
[1743354966484,0.0122845,82533.0,82526.0,0.012117]
[1743354966689,0.254446,82532.0,82525.0,0.012117]
[1743354966952,0.012116,82531.0,82525.0,0.012117]
[1743354967129,0.242327,82533.0,82525.0,0.012117]
[1743354967560,0.0643,82536.0,82528.0,0.254458]
[1743354967750,0.076415,82536.0,82528.0,0.254458]
[1743354967955,0.0001685,82540.0,82535.0,0.254437]
[1743354968165,0.004,82539.0,82537.0,0.242315]
[1743354968514,0.004,82539.0,82535.0,0.254436]
[1743354968707,0.004,82539.0,82537.0,0.242315]
[1743354968962,0.004,82539.0,82536.0,0.012115]
[1743354969160,0.004,82539.0,82538.0,0.012115]
[1743354969360,0.004,82539.0,82538.0,0.03240756]
[1743354969997,0.004,82539.0,82536.0,0.14704]
[1743354970165,0.004,82539.0,82537.0,0.242315]
[1743354970366,0.004,82539.0,82538.0,0.012115]
[1743354971381,0.004,82539.0,82538.0,0.13239983]
[1743354972437,0.004,82539.0,82538.0,0.21352283]
[1743354973432,0.004,82539.0,82538.0,0.22881695]
[1743354973634,0.004,82539.0,82538.0,0.22639395]
[1743354973897,0.004,82539.0,82538.0,0.27761651]
[1743354974066,0.004,82539.0,82538.0,0.27519395]
[1743354975251,0.0041685,82539.0,82538.0,0.27519395]
[1743354976896,0.0041685,82539.0,82538.0,0.57519395]
[1743354980956,5e-07,82544.0,82541.0,0.542303]
[1743354981155,5e-07,82544.0,82543.0,0.91603668]
[1743354981365,0.00014195,82544.0,82543.0,0.91603668]
[1743354981734,0.00014195,82544.0,82543.0,0.96543668]
[1743354982609,9.5e-07,82544.0,82543.0,0.96543668]
[1743354982811,4.5e-07,82548.0,82547.0,0.5544]
[1743354983018,4.5e-07,82548.0,82547.0,1.39206568]
[1743354983226,4e-07,82550.0,82549.0,0.012114]
[1743354983410,4e-07,82550.0,82549.0,0.56102069]
[1743354983559,4e-07,82550.0,82549.0,0.55859883]
[1743354985006,4e-07,82550.0,82549.0,0.56780972]
[1743354987376,4e-07,82563.0,82562.0,0.254354]
[1743354987710,0.0041685,82599.0,82562.0,0.254354]
[1743354987711,4e-07,82569.0,82568.0,0.68676485]
[1743354987928,0.0004718,82569.0,82568.0,1.18143192]
[1743354988558,0.0004718,82569.0,82568.0,1.19664544]
[1743354988780,0.0006402,82569.0,82568.0,1.19664544]
[1743354990533,0.0006402,82569.0,82568.0,0.65149983]
[1743354990738,0.0006402,82569.0,82568.0,0.37461983]
[1743354990977,0.0006402,82569.0,82568.0,0.52149983]
[1743354991983,0.0006402,82569.0,82568.0,0.37461983]
[1743354992171,0.0006402,82569.0,82568.0,0.14688]
[1743354992560,0.0095925,82569.0,82568.0,0.14688]
[1743354992780,0.012111,82567.0,82561.0,0.254354]
[1743354992956,0.0504512,82569.0,82563.0,0.254348]
[1743354993160,0.0504512,82569.0,82563.0,0.012111]
[1743354993399,0.012111,82567.0,82560.0,0.012112]
[1743354993597,0.012111,82567.0,82561.0,0.012112]
[1743354993791,0.0535323,82569.0,82564.0,0.242236]
[1743354993990,0.0535323,82569.0,82565.0,0.012111]
[1743354994529,0.0535323,82569.0,82568.0,0.012111]
[1743354994728,0.0006402,82569.0,82568.0,0.254335]
[1743354994929,0.0006402,82569.0,82568.0,0.012111]
[1743354996602,0.0006402,82569.0,82565.0,0.012111]
[1743354996797,0.0006402,82569.0,82566.0,0.37462483]
[1743354997429,0.0006402,82569.0,82568.0,0.242224]
[1743354997844,0.0006402,82569.0,82566.0,0.12028483]
[1743354998414,0.0006402,82569.0,82566.0,0.37462483]
[1743355000043,0.0006402,82569.0,82566.0,0.12028483]
[1743355000265,0.242242,82562.0,82557.0,0.012112]
[1743355000395,0.2428622,82569.0,82566.0,0.14688]
[1743355001017,0.26182845,82569.0,82566.0,0.1472168]
[1743355001440,0.01960645,82569.0,82566.0,0.1593278]
[1743355003317,0.01960645,82569.0,82567.0,0.254338]
[1743355003682,0.01960645,82569.0,82568.0,0.012111]
[1743355003876,0.0006402,82569.0,82568.0,0.13239583]
[1743355006734,0.0006402,82569.0,82568.0,0.27927583]
[1743355010089,0.0006402,82569.0,82566.0,0.1471768]
[1743355010322,0.0006402,82569.0,82567.0,0.254338]
[1743355010568,0.0006402,82569.0,82568.0,0.012111]
[1743355011043,0.0006402,82569.0,82566.0,0.1471768]
[1743355011654,0.0006402,82569.0,82566.0,0.3894058]
[1743355011867,0.0006402,82569.0,82566.0,0.4015168]
[1743355012051,0.012111,82567.0,82566.0,0.1471768]
[1743355012195,0.0909314,82567.0,82566.0,0.0003368]
[1743355012708,0.012111,82567.0,82566.0,0.0003368]
[1743355013893,0.0006402,82569.0,82566.0,0.0003368]
[1743355014559,0.2428612,82569.0,82566.0,0.0003368]
[1743355014758,0.012111,82568.0,82566.0,0.0003368]
[1743355015138,0.2428612,82569.0,82566.0,0.0003368]
[1743355015382,0.0006402,82569.0,82566.0,0.0003368]
[1743355017664,0.0006402,82569.0,82566.0,0.2425648]
[1743355017850,0.0006402,82569.0,82566.0,0.0003368]
[1743355018071,0.242224,82568.0,82566.0,0.0003368]
[1743355018275,0.012111,82567.0,82566.0,0.0003368]
[1743355019662,0.0310773,82567.0,82566.0,0.0003368]
[1743355020212,0.012111,82567.0,82566.0,0.0003368]
[1743355021866,0.0667107,82567.0,82566.0,0.0003368]
[1743355023637,0.012111,82567.0,82566.0,0.0003368]
[1743355025992,0.242221,82569.0,82566.0,0.0003368]
[1743355026199,0.012111,82567.0,82566.0,0.0003368]
[1743355028083,0.049811,82567.0,82566.0,0.0003368]
[1743355028573,0.18463668,82567.0,82566.0,0.0003368]
[1743355028976,0.25692513,82567.0,82566.0,0.0003368]
[1743355029235,0.2333397,82568.0,82566.0,0.0003368]
[1743355029428,0.012111,82567.0,82566.0,0.0003368]
[1743355029788,0.312111,82567.0,82566.0,0.0003368]
[1743355034184,0.01896882,82570.0,82569.0,0.012111]
[1743355034385,0.01911016,82570.0,82569.0,0.012111]
[1743355036617,0.00014134,82570.0,82569.0,0.012111]
[1743355036903,0.00014134,82570.0,82567.0,0.36251183]
[1743355037254,0.00014134,82570.0,82567.0,0.12028483]
[1743355037778,0.0001684,82568.0,82567.0,0.12028483]
[1743355038029,0.012111,82567.0,82566.0,0.0003368]
[1743355039664,0.03107939,82567.0,82566.0,0.0003368]
[1743355041968,0.01896839,82567.0,82566.0,0.0003368]
[1743355042175,0.01896839,82567.0,82566.0,0.18103263]
[1743355042552,0.01896839,82567.0,82566.0,0.32779263]
[1743355042827,0.01896839,82567.0,82566.0,0.44359649]
[1743355043244,0.01896839,82567.0,82566.0,0.32779263]
[1743355043400,0.01896839,82567.0,82566.0,0.57002263]
[1743355045621,0.24219,82580.0,82571.0,0.254323]
[1743355045821,0.242195,82579.0,82571.0,0.254323]
[1743355046618,0.254304,82579.0,82571.0,0.254323]
[1743355047693,0.254304,82579.0,82572.0,0.254319]
[1743355048001,0.012109,82580.0,82573.0,0.01211]
[1743355048161,0.254299,82580.0,82573.0,0.01211]
[1743355048363,0.012109,82578.0,82572.0,0.01211]
[1743355049955,0.01211,82576.0,82567.0,0.12062163]
[1743355050162,0.0653895,82578.0,82567.0,0.0003368]
[1743355050163,0.012111,82568.0,82567.0,0.0003368]
[1743355052344,0.01211,82572.0,82567.0,0.0003368]
[1743355052544,0.01211,82571.0,82567.0,0.0003368]
[1743355052755,0.254325,82571.0,82567.0,0.0003368]
[1743355053153,0.254331,82570.0,82567.0,0.0003368]
[1743355054422,0.254325,82571.0,82567.0,0.0003368]
[1743355055615,0.01211,82570.0,82567.0,0.0003368]
[1743355056318,0.242224,82568.0,82567.0,0.0003368]
[1743355057551,0.254335,82568.0,82567.0,0.0003368]
[1743355058302,0.01211,82573.0,82567.0,0.0003368]
[1743355058507,0.01211,82572.0,82568.0,0.0763]
[1743355058706,0.01211,82575.0,82568.0,0.0763]
[1743355058707,0.242204,82575.0,82568.0,0.0763]
[1743355058907,0.012109,82577.0,82571.0,0.242215]
[1743355059191,0.012109,82577.0,82572.0,0.0485]
[1743355059192,0.312109,82577.0,82572.0,0.0485]
[1743355059594,0.01211,82574.0,82572.0,0.0485]
[1743355059843,0.01211,82573.0,82572.0,0.0485]
[1743355060047,0.254335,82568.0,82567.0,0.1470568]
[1743355061831,0.27330282,82568.0,82567.0,0.1470568]
[1743355062725,0.32879013,82568.0,82567.0,0.1470568]
[1743355062924,0.32879013,82568.0,82567.0,0.0003368]
[1743355066208,0.36519513,82568.0,82567.0,0.0003368]
[1743355066603,0.34622731,82568.0,82567.0,0.0003368]
[1743355066806,0.35876816,82568.0,82567.0,0.0003368]
[1743355067047,0.47905299,82568.0,82567.0,0.0003368]
[1743355067252,0.54835299,82568.0,82567.0,0.0003368]
[1743355067454,0.84835299,82568.0,82567.0,0.0003368]
[1743355067894,0.89390405,82568.0,82567.0,0.0003368]
[1743355068100,0.35665185,82567.0,82566.0,6e-07]
[1743355068313,0.59722151,82567.0,82566.0,6e-07]
[1743355068898,0.254421,82540.0,82537.0,0.0492]
[1743355069101,0.254421,82540.0,82539.0,0.5770714]
[1743355070126,0.27772262,82540.0,82539.0,0.5770714]
[1743355070913,0.29669582,82540.0,82539.0,0.5770714]
[1743355071872,0.34875709,82540.0,82539.0,0.5770714]
[1743355072077,0.36829794,82540.0,82539.0,0.0004714]
[1743355072389,0.93485183,82540.0,82539.0,0.0004714]
[1743355072576,0.95985183,82540.0,82539.0,0.0004714]
[1743355075110,0.95985183,82540.0,82512.0,0.0781368]
[1743355075111,0.012119,82513.0,82512.0,0.0003368]
[1743355075313,0.012119,82513.0,82512.0,0.00047814]
[1743355075932,0.03109871,82513.0,82512.0,0.00047814]
[1743355076693,0.012119,82513.0,82512.0,0.00047814]
[1743355082911,0.048548,82513.0,82512.0,0.00047814]
[1743355084707,0.05981244,82513.0,82512.0,0.00047814]
[1743355084913,0.08233474,82513.0,82512.0,0.00047814]
[1743355085510,0.38233474,82513.0,82512.0,0.00047814]
[1743355086510,0.64244525,82513.0,82512.0,0.00047814]
[1743355087598,0.52216042,82513.0,82512.0,0.00047814]
[1743355090959,0.54114248,82513.0,82512.0,0.00047814]
[1743355093731,0.254563,82494.0,82493.0,0.0461]
[1743355093863,0.254563,82494.0,82493.0,0.04624145]
[1743355094446,0.27354522,82494.0,82493.0,0.04624145]
[1743355095228,0.30733196,82494.0,82493.0,0.04624145]
[1743355097100,0.33068347,82494.0,82493.0,0.04624145]
[1743355099207,0.41830602,82494.0,82493.0,0.00014145]
[1743355099430,0.3993238,82494.0,82493.0,0.00014145]
[1743355100485,0.3993238,82494.0,82491.0,4.5e-07]
[1743355100486,0.57410985,82492.0,82491.0,4.5e-07]
[1743355100665,0.69439468,82492.0,82491.0,8.622e-05]
[1743355100879,0.74434738,82492.0,82491.0,8.622e-05]
[1743355101272,0.559588,82486.0,82484.0,0.0003368]
[1743355101474,0.317123,82485.0,82484.0,0.0003368]
[1743355101673,0.44650191,82485.0,82484.0,0.0003368]
[1743355101874,0.47150191,82485.0,82484.0,0.0003368]
[1743355102117,0.60305118,82485.0,82484.0,0.0003368]
[1743355102288,0.62204021,82485.0,82484.0,0.0003368]
[1743355102488,0.254653,82465.0,82461.0,0.004]
[1743355102805,0.254653,82465.0,82464.0,0.00047849]
[1743355103004,0.26591744,82465.0,82464.0,0.00047849]
[1743355103205,0.35442971,82465.0,82464.0,0.00047849]
[1743355103633,0.37341998,82465.0,82464.0,0.00047849]
[1743355103833,0.39594228,82465.0,82464.0,0.00047849]
[1743355104412,0.10135401,82465.0,82464.0,0.07727849]
[1743355104637,0.08236374,82465.0,82464.0,0.12263706]
[1743355104897,0.03378674,82465.0,82464.0,0.12263706]
[1743355106663,0.03378674,82465.0,82464.0,0.13476306]
[1743355106868,0.03378674,82465.0,82464.0,0.12263706]
[1743355106869,0.04591274,82465.0,82464.0,0.12263706]
[1743355107516,0.03378674,82465.0,82464.0,0.12263706]
[1743355107691,0.27631374,82465.0,82464.0,0.12263706]
[1743355107867,0.37306871,82465.0,82464.0,0.12263706]
[1743355108550,0.03378674,82465.0,82464.0,0.12263706]
[1743355108762,0.01126444,82465.0,82464.0,0.12263706]
[1743355109184,0.012125,82468.0,82464.0,0.12263706]
[1743355109883,0.254647,82467.0,82464.0,0.12263706]
[1743355110082,0.254653,82465.0,82464.0,0.12263706]
[1743355110240,0.3371159,82465.0,82464.0,0.12263706]
[1743355112080,0.35610552,82465.0,82464.0,0.12263706]
[1743355113438,0.35610552,82465.0,82464.0,0.12280566]
[1743355115345,0.36741982,82465.0,82464.0,0.12280566]
[1743355116493,0.0113143,82465.0,82464.0,0.37746166]
[1743355116709,0.0113143,82465.0,82464.0,0.49774649]
[1743355117087,0.242435,82497.0,82490.0,0.012122]
[1743355117299,0.05978951,82494.0,82488.0,0.254581]
[1743355117530,0.036438,82494.0,82491.0,0.24245]
[1743355117737,0.06015555,82494.0,82486.0,0.1245]
[1743355117937,0.012122,82492.0,82486.0,0.136623]
[1743355118143,0.02371755,82494.0,82491.0,0.254571]
[1743355118553,0.3,82496.0,82491.0,0.254571]
[1743355118755,0.312121,82496.0,82491.0,0.254571]
[1743355119488,0.01898521,82495.0,82491.0,0.254571]
[1743355120557,0.01898521,82495.0,82492.0,0.012122]
[1743355121121,0.01898521,82495.0,82494.0,0.012122]
[1743355121276,0.0001412,82497.0,82496.0,0.012121]
[1743355121451,0.0001412,82497.0,82496.0,0.2159299]
[1743355121803,0.0001412,82497.0,82496.0,0.6583]
[1743355122436,0.0122622,82497.0,82496.0,0.6583]
[1743355122971,0.03124521,82497.0,82496.0,0.6583]
[1743355124107,0.03124521,82497.0,82496.0,0.5772]
[1743355124519,0.01912421,82497.0,82496.0,0.5772]
[1743355125088,0.01912421,82497.0,82496.0,0.589321]
[1743355125364,0.01946161,82497.0,82496.0,0.589321]
[1743355125768,0.01946161,82497.0,82496.0,0.5772]
[1743355126067,0.0125996,82497.0,82496.0,0.5772]
[1743355128122,0.0004786,82497.0,82496.0,0.5772]
[1743355128315,0.0004786,82497.0,82496.0,0.831756]
[1743355128971,0.01946116,82497.0,82496.0,0.831756]
[1743355130369,0.01946116,82497.0,82496.0,0.5772]
[1743355130969,0.01946116,82497.0,82494.0,0.048]
[1743355131198,0.01946116,82497.0,82494.0,0.16828483]
[1743355132899,0.01946116,82497.0,82494.0,0.41072483]
[1743355133113,0.01946116,82497.0,82496.0,0.323535]
[1743355133317,0.0004786,82497.0,82496.0,0.45594083]
[1743355133460,0.0004786,82497.0,82496.0,0.50394083]
[1743355138730,0.0001686,82512.0,82511.0,0.38071]
[1743355138972,0.0001686,82512.0,82511.0,0.64763483]
[1743355140414,0.0001686,82512.0,82511.0,0.76791966]
[1743355144545,0.01897805,82527.0,82511.0,0.76791966]
[1743355144546,0.01897805,82527.0,82526.0,0.254464]
[1743355144678,0.00014147,82527.0,82526.0,0.64754883]
[1743355144885,0.00014147,82527.0,82526.0,0.67437321]
[1743355145887,0.00014147,82527.0,82526.0,0.67637321]
[1743355146023,0.00014147,82527.0,82526.0,0.67437321]
[1743355146405,4.7e-07,82527.0,82526.0,0.97737321]
[1743355146614,0.0001685,82533.0,82532.0,0.380646]
[1743355146815,0.0001685,82533.0,82532.0,0.86121566]
[1743355147650,0.3,82566.0,82560.0,0.333859]
[1743355147857,0.012112,82561.0,82560.0,0.2261]
[1743355148067,0.012112,82561.0,82560.0,0.1466]
[1743355148476,0.254341,82566.0,82560.0,0.388846]
[1743355148858,0.242236,82564.0,82560.0,0.1466]
[1743355149049,0.012111,82563.0,82560.0,0.1466]
[1743355149247,0.005,82566.0,82560.0,0.400959]
[1743355149444,0.00047175,82567.0,82560.0,0.400959]
[1743355149687,0.01896929,82563.0,82560.0,0.158712]
[1743355149849,0.01896929,82563.0,82560.0,0.400959]
[1743355150047,0.01896929,82563.0,82562.0,0.254354]
[1743355150676,0.01896929,82563.0,82562.0,0.28117838]
[1743355150993,0.01896929,82563.0,82562.0,0.40146321]
[1743355151206,0.01896929,82563.0,82562.0,0.52676321]
[1743355152039,0.02096929,82563.0,82562.0,0.52676321]
[1743355152244,0.02296929,82563.0,82562.0,0.52676321]
[1743355152490,0.02096929,82563.0,82562.0,0.49993883]
[1743355152691,0.02096929,82563.0,82562.0,0.50193883]
[1743355152823,0.02096929,82563.0,82562.0,0.50393883]
[1743355154543,0.02096929,82563.0,82562.0,0.65045883]
[1743355154895,0.02096929,82563.0,82562.0,0.76880001]
[1743355156577,0.002,82563.0,82562.0,0.76880001]
[1743355156933,0.002,82563.0,82562.0,0.65045883]
[1743355157975,0.002,82563.0,82562.0,0.50393883]
[1743355158177,0.002,82563.0,82562.0,0.15052]
[1743355158632,0.002,82563.0,82562.0,0.004]
[1743355158857,0.25635,82563.0,82562.0,0.004]
[1743355159229,0.002,82563.0,82562.0,0.004]
[1743355159591,0.25481275,82567.0,82562.0,0.002]
[1743355159989,0.012111,82566.0,82562.0,0.002]
[1743355160240,0.25435,82564.0,82561.0,0.14652]
[1743355160877,0.27331905,82564.0,82562.0,0.0001685]
[1743355161101,0.000337,82563.0,82562.0,0.0001685]
[1743355161673,0.000337,82563.0,82562.0,0.0122805]
[1743355161796,0.000337,82563.0,82562.0,0.2545225]
[1743355162005,0.000337,82563.0,82562.0,0.0122805]
[1743355162846,0.000337,82563.0,82562.0,0.0903805]
[1743355163450,0.000337,82563.0,82562.0,0.0782685]
[1743355164023,0.01930578,82563.0,82562.0,0.0782685]
[1743355164228,0.01930578,82563.0,82562.0,0.0001685]
[1743355165837,0.26154478,82563.0,82562.0,0.0001685]
[1743355166229,0.01930578,82563.0,82562.0,0.0001685]
[1743355166742,0.000337,82563.0,82562.0,0.0001685]
[1743355166974,0.000337,82563.0,82562.0,0.2545225]
[1743355167551,0.000337,82563.0,82562.0,0.0001685]
[1743355169965,0.000337,82563.0,82562.0,0.2545225]
[1743355170162,0.000337,82563.0,82562.0,0.37480733]
[1743355171004,0.01930521,82563.0,82562.0,0.37480733]
[1743355173110,0.01930521,82563.0,82562.0,0.95140733]
[1743355174546,0.01930521,82563.0,82562.0,0.95240733]
[1743355174772,0.000337,82563.0,82562.0,1.15109216]
[1743355175015,0.000337,82563.0,82562.0,1.19929216]
[1743355175481,0.000337,82563.0,82562.0,1.19829216]
[1743355175723,0.000337,82563.0,82562.0,1.20029216]
[1743355175962,0.000337,82563.0,82562.0,1.19829216]
[1743355176202,0.000337,82563.0,82562.0,1.19729216]
[1743355176405,0.000337,82563.0,82562.0,1.19929216]
[1743355176541,0.000337,82563.0,82562.0,1.20129216]
[1743355176952,0.000337,82563.0,82562.0,1.19929216]
[1743355177376,0.000337,82563.0,82562.0,1.08100733]
[1743355177612,0.000337,82563.0,82562.0,1.07900733]
[1743355177819,0.000337,82563.0,82562.0,1.08100733]
[1743355180797,0.000337,82563.0,82562.0,1.10184733]
[1743355181004,0.000337,82563.0,82562.0,0.9694505]
[1743355181183,0.000337,82563.0,82562.0,0.9815625]
[1743355182294,0.012448,82563.0,82562.0,0.5807685]
[1743355182501,0.28251475,82563.0,82562.0,0.5807685]
[1743355182701,0.254687,82563.0,82562.0,0.5807685]
[1743355187483,0.254687,82563.0,82562.0,0.0041685]
[1743355187690,0.254687,82563.0,82562.0,0.0021685]